[Event "Titled Tuesday Blitz July 25 Early 2023"]
[White "LLariMarc"]
[Black "Kayis, Gulcan Sena"]
[BlackFideId "34553045"]
[WhiteElo "2299"]
[BlackElo "1982"]
[Result "0-1"]
[Round "3"]
[TimeControl "180+2"]
[Date "2023.07.25"]
[WhiteClock "0:00:10"]
[BlackClock "0:00:13"]
[Board "196"]

1. d4 {[%clk 0:03:00]}  d5 {[%clk 0:02:59]} 2. Nf3 {[%clk 0:02:59]}  Nf6 {[%clk 0:02:59]} 3. Bg5 {[%clk 0:02:57]}  e6 {[%clk 0:02:51]} 4. Nbd2 {[%clk 0:02:54]}  Be7 {[%clk 0:02:48]} 5. e3 {[%clk 0:02:54]}  O-O {[%clk 0:02:48]} 6. Bd3 {[%clk 0:02:55]}  h6 {[%clk 0:02:47]} 7. Bxf6 {[%clk 0:02:54]}  Bxf6 {[%clk 0:02:46]} 8. O-O {[%clk 0:02:55]}  Nd7 {[%clk 0:02:44]} 9. e4 {[%clk 0:02:53]}  dxe4 {[%clk 0:02:43]} 10. Nxe4 {[%clk 0:02:54]}  Be7 {[%clk 0:02:43]} 11. c3 {[%clk 0:02:53]}  Nf6 {[%clk 0:02:43]} 12. Qe2 {[%clk 0:02:53]}  Qd5 {[%clk 0:02:30]} 13. c4 {[%clk 0:02:49]}  Qh5 {[%clk 0:02:27]} 14. Ng3 {[%clk 0:02:48]}  Qa5 {[%clk 0:02:23]} 15. Rfe1 {[%clk 0:02:48]}  c6 {[%clk 0:02:21]} 16. a3 {[%clk 0:02:47]}  Bd7 {[%clk 0:02:10]} 17. Rad1 {[%clk 0:02:44]}  Rfd8 {[%clk 0:02:08]} 18. Ne5 {[%clk 0:02:42]}  Be8 {[%clk 0:02:07]} 19. Bb1 {[%clk 0:02:41]}  c5 {[%clk 0:02:02]} 20. dxc5 {[%clk 0:02:37]}  Qxc5 {[%clk 0:02:00]} 21. b4 {[%clk 0:02:31]}  Qc7 {[%clk 0:01:57]} 22. Ng4 {[%clk 0:02:20]}  Nxg4 {[%clk 0:01:52]} 23. Qxg4 {[%clk 0:02:19]}  Bf6 {[%clk 0:01:49]} 24. Qe4 {[%clk 0:02:05]}  g6 {[%clk 0:01:48]} 25. Qc2 {[%clk 0:01:49]}  Rxd1 {[%clk 0:01:42]} 26. Rxd1 {[%clk 0:01:49]}  Rd8 {[%clk 0:01:42]} 27. Rxd8 {[%clk 0:01:48]}  Qxd8 {[%clk 0:01:41]} 28. Ne4 {[%clk 0:01:47]}  Bg7 {[%clk 0:01:40]} 29. c5 {[%clk 0:01:46]}  b6 {[%clk 0:01:29]} 30. Nd6 {[%clk 0:01:45]}  bxc5 {[%clk 0:01:26]} 31. bxc5 {[%clk 0:01:45]}  Bc6 {[%clk 0:01:24]} 32. h4 {[%clk 0:01:40]}  Qxh4 {[%clk 0:01:21]} 33. Qb3 {[%clk 0:01:16]}  Bd4 {[%clk 0:01:08]} 34. Qc2 {[%clk 0:00:49]}  Qg5 {[%clk 0:01:05]} 35. Ne4 {[%clk 0:00:44]}  Bxe4 {[%clk 0:01:01]} 36. Qxe4 {[%clk 0:00:43]}  Qxc5 {[%clk 0:01:00]} 37. Qe1 {[%clk 0:00:37]}  Qxa3 {[%clk 0:00:57]} 38. Be4 {[%clk 0:00:26]}  Qc5 {[%clk 0:00:56]} 39. g3 {[%clk 0:00:21]}  a5 {[%clk 0:00:54]} 40. Kg2 {[%clk 0:00:22]}  a4 {[%clk 0:00:51]} 41. Qe2 {[%clk 0:00:20]}  a3 {[%clk 0:00:48]} 42. Qa2 {[%clk 0:00:17]}  Bxf2 {[%clk 0:00:39]} 43. Bb1 {[%clk 0:00:12]}  Bd4 {[%clk 0:00:29]} 44. Qe2 {[%clk 0:00:12]}  Qc3 {[%clk 0:00:23]} 45. Ba2 {[%clk 0:00:11]}  Qb2 {[%clk 0:00:23]} 46. Qxb2 {[%clk 0:00:12]}  axb2 {[%clk 0:00:22]} 47. Kf3 {[%clk 0:00:13]}  Kg7 {[%clk 0:00:22]} 48. Bb1 {[%clk 0:00:13]}  f5 {[%clk 0:00:21]} 49. g4 {[%clk 0:00:11]}  Kf6 {[%clk 0:00:20]} 50. Kf4 {[%clk 0:00:10]}  e5+ {[%clk 0:00:20]} 51. Kf3 {[%clk 0:00:11]}  fxg4+ {[%clk 0:00:19]} 52. Kxg4 {[%clk 0:00:11]}  h5+ {[%clk 0:00:19]} 53. Kh4 {[%clk 0:00:10]}  Bf2+ {[%clk 0:00:19]} 54. Kh3 {[%clk 0:00:10]}  Kg5 {[%clk 0:00:19]} 55. Kg2 {[%clk 0:00:11]}  Bd4 {[%clk 0:00:19]} 56. Kf3 {[%clk 0:00:12]}  h4 {[%clk 0:00:19]} 57. Be4 {[%clk 0:00:10]}  Kh5 {[%clk 0:00:19]} 58. Bb1 {[%clk 0:00:10]}  g5 {[%clk 0:00:19]} 59. Bf5 {[%clk 0:00:09]}  Kh6 {[%clk 0:00:18]} 60. Kg4 {[%clk 0:00:09]}  Bc3 {[%clk 0:00:18]} 61. Be4 {[%clk 0:00:09]}  Bd4 {[%clk 0:00:17]} 62. Bf5 {[%clk 0:00:09]}  h3 {[%clk 0:00:17]} 63. Kxh3 {[%clk 0:00:09]}  Kh5 {[%clk 0:00:18]} 64. Kg3 {[%clk 0:00:08]}  g4 {[%clk 0:00:17]} 65. Be4 {[%clk 0:00:06]}  Kg5 {[%clk 0:00:17]} 66. Bd3 {[%clk 0:00:07]}  Bc3 {[%clk 0:00:17]} 67. Be4 {[%clk 0:00:07]}  Bd2 {[%clk 0:00:16]} 68. Kf2 {[%clk 0:00:07]}  Kf4 {[%clk 0:00:15]} 69. Bb1 {[%clk 0:00:08]}  g3+ {[%clk 0:00:14]} 70. Kg2 {[%clk 0:00:08]}  e4 {[%clk 0:00:14]} 71. Bc2 {[%clk 0:00:09]}  e3 {[%clk 0:00:14]} 72. Kf1 {[%clk 0:00:09]}  Kf3 {[%clk 0:00:14]} 73. Bd1+ {[%clk 0:00:10]}  e2+ {[%clk 0:00:14]} 74. Bxe2+ {[%clk 0:00:10]}  Ke3 {[%clk 0:00:14]} 75. Kg2 {[%clk 0:00:10]}  Kxe2 {[%clk 0:00:14]} 76. Kxg3 {[%clk 0:00:10]}  b1=Q {[%clk 0:00:14]} 77. Kg4 {[%clk 0:00:10]}  Qg6+ {[%clk 0:00:13]} 0-1


[Site "https://www.chess.com"]

[Event "Titled Tuesday Blitz July 25 Early 2023"]
[White "Harsh Suresh"]
[Black "Hrescak, Ivana"]
[WhiteFideId "45018464"]
[BlackFideId "14613441"]
[WhiteElo "2833"]
[BlackElo "2134"]
[Result "1-0"]
[Round "3"]
[TimeControl "180+2"]
[Date "2023.07.25"]
[WhiteClock "0:02:41"]
[BlackClock "0:02:33"]
[Board "197"]

1. e4 {[%clk 0:02:54]}  e5 {[%clk 0:02:59]} 2. Nf3 {[%clk 0:02:52]}  Nc6 {[%clk 0:03:00]} 3. Bc4 {[%clk 0:02:51]}  Nf6 {[%clk 0:03:00]} 4. O-O {[%clk 0:02:48]}  Nxe4 {[%clk 0:02:59]} 5. Qe2 {[%clk 0:02:49]}  d5 {[%clk 0:02:57]} 6. Bb5 {[%clk 0:02:49]}  Be7 {[%clk 0:02:46]} 7. Nxe5 {[%clk 0:02:47]}  Bd7 {[%clk 0:02:44]} 8. Nxd7 {[%clk 0:02:43]}  Qxd7 {[%clk 0:02:44]} 9. Nc3 {[%clk 0:02:43]}  Nxc3 {[%clk 0:02:38]} 10. dxc3 {[%clk 0:02:44]}  O-O-O {[%clk 0:02:35]} 11. Bxc6 {[%clk 0:02:42]}  Qxc6 {[%clk 0:02:33]} 12. Qxe7 {[%clk 0:02:41]} 1-0


[Site "https://www.chess.com"]

[Event "Titled Tuesday Blitz July 25 Early 2023"]
[White "Iskusnyh, Sergei"]
[Black "Sriniaiyer, Sudarshan"]
[WhiteFideId "4120027"]
[BlackFideId "30937213"]
[WhiteElo "2622"]
[BlackElo "2341"]
[Result "1-0"]
[Round "3"]
[TimeControl "180+2"]
[Date "2023.07.25"]
[WhiteClock "0:00:24"]
[BlackClock "0:00:01"]
[Board "198"]

1. d4 {[%clk 0:03:00]}  Nf6 {[%clk 0:02:58]} 2. c4 {[%clk 0:03:01]}  e6 {[%clk 0:02:55]} 3. g3 {[%clk 0:03:00]}  d5 {[%clk 0:02:54]} 4. Bg2 {[%clk 0:03:00]}  Bb4+ {[%clk 0:02:52]} 5. Nd2 {[%clk 0:02:58]}  O-O {[%clk 0:02:46]} 6. Nf3 {[%clk 0:02:56]}  b6 {[%clk 0:02:46]} 7. O-O {[%clk 0:02:55]}  Bb7 {[%clk 0:02:45]} 8. b3 {[%clk 0:02:54]}  a5 {[%clk 0:02:44]} 9. Bb2 {[%clk 0:02:51]}  a4 {[%clk 0:02:37]} 10. a3 {[%clk 0:02:30]}  Bxd2 {[%clk 0:02:37]} 11. Nxd2 {[%clk 0:02:30]}  axb3 {[%clk 0:02:37]} 12. Nxb3 {[%clk 0:02:30]}  Nbd7 {[%clk 0:02:26]} 13. Qc2 {[%clk 0:02:24]}  Rc8 {[%clk 0:01:35]} 14. c5 {[%clk 0:02:19]}  bxc5 {[%clk 0:01:35]} 15. dxc5 {[%clk 0:02:19]}  Ba6 {[%clk 0:01:31]} 16. Rfd1 {[%clk 0:02:14]}  Rb8 {[%clk 0:01:29]} 17. Na5 {[%clk 0:02:04]}  Rb5 {[%clk 0:01:23]} 18. Nc6 {[%clk 0:01:50]}  Qe8 {[%clk 0:01:23]} 19. Bd4 {[%clk 0:01:36]}  e5 {[%clk 0:01:05]} 20. a4 {[%clk 0:01:35]}  Rb7 {[%clk 0:00:58]} 21. Bb2 {[%clk 0:01:25]}  e4 {[%clk 0:00:22]} 22. Bd4 {[%clk 0:01:10]}  Nb8 {[%clk 0:00:15]} 23. Na5 {[%clk 0:01:06]}  Ra7 {[%clk 0:00:16]} 24. c6 {[%clk 0:01:05]}  Ra8 {[%clk 0:00:16]} 25. Bc5 {[%clk 0:01:00]}  Bxe2 {[%clk 0:00:14]} 26. Qxe2 {[%clk 0:00:59]}  Rxa5 {[%clk 0:00:14]} 27. Bxf8 {[%clk 0:00:56]}  Kxf8 {[%clk 0:00:14]} 28. Rdc1 {[%clk 0:00:38]}  Nxc6 {[%clk 0:00:15]} 29. Qc2 {[%clk 0:00:38]}  Ne5 {[%clk 0:00:08]} 30. Qxc7 {[%clk 0:00:36]}  Ra8 {[%clk 0:00:09]} 31. a5 {[%clk 0:00:31]}  Nd3 {[%clk 0:00:08]} 32. Rcb1 {[%clk 0:00:30]}  Rc8 {[%clk 0:00:08]} 33. Qd6+ {[%clk 0:00:30]}  Kg8 {[%clk 0:00:08]} 34. a6 {[%clk 0:00:30]}  Nd7 {[%clk 0:00:03]} 35. a7 {[%clk 0:00:29]}  Ra8 {[%clk 0:00:03]} 36. Qxd7 {[%clk 0:00:23]}  Qxd7 {[%clk 0:00:01]} 37. Rb8+ {[%clk 0:00:24]} 1-0


[Site "https://www.chess.com"]

[Event "Titled Tuesday Blitz July 25 Early 2023"]
[White "Agibileg, Uurtsaikh"]
[Black "morozcoma"]
[WhiteFideId "4901606"]
[WhiteElo "2596"]
[BlackElo "2340"]
[Result "1-0"]
[Round "3"]
[TimeControl "180+2"]
[Date "2023.07.25"]
[WhiteClock "0:01:56"]
[BlackClock "0:00:44"]
[Board "199"]

1. d4 {[%clk 0:03:00]}  d5 {[%clk 0:02:56]} 2. c4 {[%clk 0:03:00]}  dxc4 {[%clk 0:02:57]} 3. Nf3 {[%clk 0:02:57]}  a6 {[%clk 0:02:56]} 4. Nc3 {[%clk 0:02:55]}  Bg4 {[%clk 0:02:51]} 5. a4 {[%clk 0:02:53]}  e6 {[%clk 0:02:42]} 6. e4 {[%clk 0:02:53]}  Nf6 {[%clk 0:02:36]} 7. Bxc4 {[%clk 0:02:54]}  Bb4 {[%clk 0:02:35]} 8. O-O {[%clk 0:02:54]}  Bxc3 {[%clk 0:02:31]} 9. bxc3 {[%clk 0:02:55]}  Nxe4 {[%clk 0:02:32]} 10. Ba3 {[%clk 0:02:55]}  Nxc3 {[%clk 0:02:25]} 11. Qb3 {[%clk 0:02:51]}  Nd5 {[%clk 0:02:19]} 12. Qxb7 {[%clk 0:02:51]}  Nd7 {[%clk 0:02:00]} 13. Bxd5 {[%clk 0:02:50]}  exd5 {[%clk 0:01:55]} 14. Rfe1+ {[%clk 0:02:50]}  Be6 {[%clk 0:01:55]} 15. Qxd5 {[%clk 0:02:48]}  c5 {[%clk 0:01:37]} 16. Rxe6+ {[%clk 0:01:58]}  fxe6 {[%clk 0:01:37]} 17. Qxe6+ {[%clk 0:01:58]}  Qe7 {[%clk 0:01:34]} 18. Qd5 {[%clk 0:01:59]}  O-O-O {[%clk 0:00:48]} 19. Qc6+ {[%clk 0:01:54]}  Kb8 {[%clk 0:00:47]} 20. Rb1+ {[%clk 0:01:55]}  Nb6 {[%clk 0:00:45]} 21. Rxb6+ {[%clk 0:01:55]}  Ka7 {[%clk 0:00:43]} 22. Rxa6+ {[%clk 0:01:55]}  Kb8 {[%clk 0:00:44]} 23. Ra8# {[%clk 0:01:56]} 1-0


[Site "https://www.chess.com"]

[Event "Titled Tuesday Blitz July 25 Early 2023"]
[White "Lopez Del Alamo, Antonio"]
[Black "Bilan, Danila"]
[WhiteFideId "2227339"]
[BlackFideId "24161918"]
[WhiteElo "2336"]
[BlackElo "2523"]
[Result "0-1"]
[Round "3"]
[TimeControl "180+2"]
[Date "2023.07.25"]
[WhiteClock "0:01:32"]
[BlackClock "0:00:33"]
[Board "202"]

1. e4 {[%clk 0:02:59]}  c6 {[%clk 0:02:24]} 2. d4 {[%clk 0:02:58]}  d5 {[%clk 0:02:24]} 3. e5 {[%clk 0:02:58]}  c5 {[%clk 0:02:25]} 4. dxc5 {[%clk 0:02:57]}  Nc6 {[%clk 0:02:25]} 5. Nf3 {[%clk 0:02:56]}  Bg4 {[%clk 0:02:25]} 6. h3 {[%clk 0:02:51]}  Bxf3 {[%clk 0:02:25]} 7. Qxf3 {[%clk 0:02:50]}  e6 {[%clk 0:02:26]} 8. Bf4 {[%clk 0:02:48]}  Bxc5 {[%clk 0:02:25]} 9. Bd3 {[%clk 0:02:48]}  Nge7 {[%clk 0:02:22]} 10. O-O {[%clk 0:02:46]}  Ng6 {[%clk 0:02:19]} 11. Re1 {[%clk 0:02:45]}  Qb6 {[%clk 0:02:14]} 12. Nd2 {[%clk 0:02:40]}  Nxf4 {[%clk 0:01:27]} 13. Qxf4 {[%clk 0:02:26]}  Qb4 {[%clk 0:01:09]} 14. Qg3 {[%clk 0:02:19]}  Qxd2 {[%clk 0:00:56]} 15. Rad1 {[%clk 0:02:14]}  Qh6 {[%clk 0:00:52]} 16. c3 {[%clk 0:02:10]}  O-O {[%clk 0:00:48]} 17. b4 {[%clk 0:02:06]}  Bb6 {[%clk 0:00:48]} 18. a4 {[%clk 0:02:05]}  a5 {[%clk 0:00:46]} 19. b5 {[%clk 0:02:05]}  Ne7 {[%clk 0:00:45]} 20. Bb1 {[%clk 0:01:58]}  Rac8 {[%clk 0:00:43]} 21. Rd3 {[%clk 0:01:58]}  Ng6 {[%clk 0:00:41]} 22. Rf3 {[%clk 0:01:53]}  Rc4 {[%clk 0:00:38]} 23. Bc2 {[%clk 0:01:48]}  Rfc8 {[%clk 0:00:36]} 24. Bb3 {[%clk 0:01:46]}  Rf4 {[%clk 0:00:35]} 25. Rxf4 {[%clk 0:01:35]}  Qxf4 {[%clk 0:00:34]} 26. Qd3 {[%clk 0:01:32]}  Qxf2+ {[%clk 0:00:33]} 0-1


[Site "https://www.chess.com"]

[Event "Titled Tuesday Blitz July 25 Early 2023"]
[White "Shturman, Arseniy"]
[Black "Peiris, T G M"]
[WhiteFideId "34275797"]
[BlackFideId "9901310"]
[WhiteElo "2507"]
[BlackElo "2335"]
[Result "1-0"]
[Round "3"]
[TimeControl "180+2"]
[Date "2023.07.25"]
[WhiteClock "0:01:26"]
[BlackClock "0:00:02"]
[Board "203"]

1. e4 {[%clk 0:03:00]}  c5 {[%clk 0:03:00]} 2. Nf3 {[%clk 0:03:00]}  d6 {[%clk 0:03:00]} 3. d4 {[%clk 0:02:58]}  cxd4 {[%clk 0:03:01]} 4. Nxd4 {[%clk 0:02:59]}  Nf6 {[%clk 0:03:01]} 5. Nc3 {[%clk 0:02:58]}  a6 {[%clk 0:03:02]} 6. Be2 {[%clk 0:02:58]}  e6 {[%clk 0:03:01]} 7. O-O {[%clk 0:02:55]}  Be7 {[%clk 0:03:02]} 8. f4 {[%clk 0:02:53]}  Qc7 {[%clk 0:03:01]} 9. g4 {[%clk 0:02:48]}  Nc6 {[%clk 0:02:59]} 10. Be3 {[%clk 0:02:41]}  h6 {[%clk 0:02:48]} 11. h4 {[%clk 0:02:39]}  b5 {[%clk 0:02:37]} 12. g5 {[%clk 0:02:39]}  hxg5 {[%clk 0:02:36]} 13. hxg5 {[%clk 0:02:39]}  Ng8 {[%clk 0:02:11]} 14. Qd2 {[%clk 0:02:25]}  f5 {[%clk 0:01:48]} 15. exf5 {[%clk 0:02:18]}  exf5 {[%clk 0:01:35]} 16. Nd5 {[%clk 0:02:17]}  Qb7 {[%clk 0:01:30]} 17. Bf3 {[%clk 0:02:16]}  Bd7 {[%clk 0:01:24]} 18. Rfe1 {[%clk 0:02:13]}  Nxd4 {[%clk 0:01:13]} 19. Nf6+ {[%clk 0:02:09]}  gxf6 {[%clk 0:00:30]} 20. Bxb7 {[%clk 0:02:06]}  Rb8 {[%clk 0:00:31]} 21. Bxd4 {[%clk 0:02:05]}  Rxb7 {[%clk 0:00:31]} 22. gxf6 {[%clk 0:02:05]}  Bc6 {[%clk 0:00:27]} 23. Qe3 {[%clk 0:01:50]}  Rh1+ {[%clk 0:00:22]} 24. Kf2 {[%clk 0:01:48]}  Rh2+ {[%clk 0:00:22]} 25. Kf1 {[%clk 0:01:49]}  Kf8 {[%clk 0:00:15]} 26. fxe7+ {[%clk 0:01:46]}  Rxe7 {[%clk 0:00:16]} 27. Qg3 {[%clk 0:01:45]}  Rh1+ {[%clk 0:00:06]} 28. Kf2 {[%clk 0:01:41]}  Rhxe1 {[%clk 0:00:02]} 29. Rxe1 {[%clk 0:01:42]}  Rh7 {[%clk 0:00:03]} 30. Rg1 {[%clk 0:01:39]}  Ne7 {[%clk 0:00:03]} 31. Qa3 {[%clk 0:01:29]}  Rh6 {[%clk 0:00:02]} 32. Bg7+ {[%clk 0:01:26]} 1-0


[Site "https://www.chess.com"]

[Event "Titled Tuesday Blitz July 25 Early 2023"]
[White "Ginzburg, Yakov"]
[Black "Wimalasuriya, Kasun M."]
[WhiteFideId "4157176"]
[BlackFideId "9906789"]
[WhiteElo "2490"]
[BlackElo "2310"]
[Result "1-0"]
[Round "3"]
[TimeControl "180+2"]
[Date "2023.07.25"]
[WhiteClock "0:00:33"]
[BlackClock "0:01:29"]
[Board "205"]

1. d4 {[%clk 0:02:52]}  Nf6 {[%clk 0:02:55]} 2. Nf3 {[%clk 0:02:47]}  g6 {[%clk 0:02:53]} 3. c4 {[%clk 0:02:44]}  Bg7 {[%clk 0:02:53]} 4. Nc3 {[%clk 0:02:44]}  d6 {[%clk 0:02:52]} 5. e4 {[%clk 0:02:44]}  O-O {[%clk 0:02:52]} 6. Be2 {[%clk 0:02:44]}  e5 {[%clk 0:02:50]} 7. dxe5 {[%clk 0:02:44]}  dxe5 {[%clk 0:02:49]} 8. Qxd8 {[%clk 0:02:44]}  Rxd8 {[%clk 0:02:49]} 9. Bg5 {[%clk 0:02:45]}  c6 {[%clk 0:02:47]} 10. Rd1 {[%clk 0:02:06]}  Rxd1+ {[%clk 0:02:43]} 11. Kxd1 {[%clk 0:02:06]}  Be6 {[%clk 0:02:43]} 12. Kc2 {[%clk 0:01:59]}  Nbd7 {[%clk 0:02:35]} 13. h3 {[%clk 0:01:53]}  h6 {[%clk 0:02:24]} 14. Be3 {[%clk 0:01:53]}  Bf8 {[%clk 0:02:15]} 15. Nd2 {[%clk 0:01:20]}  Bc5 {[%clk 0:02:09]} 16. Bxc5 {[%clk 0:01:20]}  Nxc5 {[%clk 0:02:09]} 17. b4 {[%clk 0:01:21]}  Na6 {[%clk 0:02:01]} 18. a3 {[%clk 0:01:20]}  Rd8 {[%clk 0:02:01]} 19. Nb3 {[%clk 0:01:19]}  Nc7 {[%clk 0:02:00]} 20. Rd1 {[%clk 0:01:15]}  Rxd1 {[%clk 0:01:59]} 21. Kxd1 {[%clk 0:01:14]}  b6 {[%clk 0:01:58]} 22. Kc2 {[%clk 0:01:13]}  Bd7 {[%clk 0:01:52]} 23. c5 {[%clk 0:01:09]}  Ne6 {[%clk 0:01:51]} 24. cxb6 {[%clk 0:01:09]}  axb6 {[%clk 0:01:51]} 25. a4 {[%clk 0:00:50]}  Nd4+ {[%clk 0:01:47]} 26. Nxd4 {[%clk 0:00:50]}  exd4 {[%clk 0:01:48]} 27. e5 {[%clk 0:00:50]}  Ne8 {[%clk 0:01:40]} 28. Ne4 {[%clk 0:00:46]}  Kf8 {[%clk 0:01:41]} 29. a5 {[%clk 0:00:44]}  bxa5 {[%clk 0:01:40]} 30. bxa5 {[%clk 0:00:43]}  Ke7 {[%clk 0:01:41]} 31. Nc5 {[%clk 0:00:40]}  Be6 {[%clk 0:01:38]} 32. a6 {[%clk 0:00:36]}  Nc7 {[%clk 0:01:39]} 33. a7 {[%clk 0:00:37]}  Bd5 {[%clk 0:01:35]} 34. g3 {[%clk 0:00:34]}  Kd8 {[%clk 0:01:29]} 35. Ba6 {[%clk 0:00:33]} 1-0


[Site "https://www.chess.com"]

[Event "Titled Tuesday Blitz July 25 Early 2023"]
[White "Tsyhanchuk, Stanislav"]
[Black "Karamsetty, Jeevan"]
[WhiteFideId "13505130"]
[BlackFideId "2025337"]
[WhiteElo "2307"]
[BlackElo "2489"]
[Result "1-0"]
[Round "3"]
[TimeControl "180+2"]
[Date "2023.07.25"]
[WhiteClock "0:00:13"]
[BlackClock "0:00:13"]
[Board "206"]

1. c4 {[%clk 0:03:00]}  e5 {[%clk 0:02:59]} 2. Nc3 {[%clk 0:03:00]}  Bb4 {[%clk 0:03:00]} 3. e4 {[%clk 0:02:57]}  Nf6 {[%clk 0:02:58]} 4. d3 {[%clk 0:02:57]}  c6 {[%clk 0:02:58]} 5. Nf3 {[%clk 0:02:55]}  Qc7 {[%clk 0:02:54]} 6. Bg5 {[%clk 0:02:48]}  d6 {[%clk 0:02:50]} 7. Be2 {[%clk 0:02:45]}  Nbd7 {[%clk 0:02:47]} 8. O-O {[%clk 0:02:44]}  h6 {[%clk 0:02:47]} 9. Bh4 {[%clk 0:02:43]}  O-O {[%clk 0:02:31]} 10. Qd2 {[%clk 0:02:33]}  Nh7 {[%clk 0:02:20]} 11. a3 {[%clk 0:02:28]}  Bxc3 {[%clk 0:02:18]} 12. bxc3 {[%clk 0:02:29]}  Nc5 {[%clk 0:02:15]} 13. Rae1 {[%clk 0:02:23]}  f5 {[%clk 0:02:15]} 14. exf5 {[%clk 0:02:19]}  Bxf5 {[%clk 0:02:15]} 15. d4 {[%clk 0:02:15]}  Ne4 {[%clk 0:02:12]} 16. Qc1 {[%clk 0:02:14]}  Rae8 {[%clk 0:01:47]} 17. c5 {[%clk 0:01:58]}  exd4 {[%clk 0:01:32]} 18. cxd6 {[%clk 0:01:43]}  Qxd6 {[%clk 0:01:26]} 19. Nxd4 {[%clk 0:01:44]}  Bg6 {[%clk 0:01:18]} 20. Bf3 {[%clk 0:01:36]}  Nhg5 {[%clk 0:01:12]} 21. Bxe4 {[%clk 0:01:31]}  Nxe4 {[%clk 0:01:10]} 22. Re3 {[%clk 0:01:29]}  c5 {[%clk 0:00:55]} 23. Ne2 {[%clk 0:01:24]}  c4 {[%clk 0:00:42]} 24. Rd1 {[%clk 0:01:13]}  Qc7 {[%clk 0:00:29]} 25. Bg3 {[%clk 0:00:48]}  Nxg3 {[%clk 0:00:16]} 26. Nxg3 {[%clk 0:00:49]}  Bd3 {[%clk 0:00:14]} 27. Rde1 {[%clk 0:00:46]}  Rxe3 {[%clk 0:00:14]} 28. Qxe3 {[%clk 0:00:47]}  Kh8 {[%clk 0:00:13]} 29. h3 {[%clk 0:00:42]}  Qa5 {[%clk 0:00:12]} 30. Qe7 {[%clk 0:00:39]}  Rg8 {[%clk 0:00:12]} 31. Qb4 {[%clk 0:00:30]}  Qa6 {[%clk 0:00:12]} 32. Re7 {[%clk 0:00:28]}  b6 {[%clk 0:00:12]} 33. Nh5 {[%clk 0:00:27]}  Qc8 {[%clk 0:00:11]} 34. Qd6 {[%clk 0:00:26]}  Qf5 {[%clk 0:00:08]} 35. g4 {[%clk 0:00:14]}  Qg5 {[%clk 0:00:07]} 36. f4 {[%clk 0:00:12]}  Qh4 {[%clk 0:00:03]} 37. Qe5 {[%clk 0:00:09]}  Qxh3 {[%clk 0:00:02]} 38. Rxg7 {[%clk 0:00:06]}  Qxh5 {[%clk 0:00:01]} 39. Rxg8+ {[%clk 0:00:04]}  Kxg8 {[%clk 0:00:02]} 40. Qxh5 {[%clk 0:00:04]}  Kg7 {[%clk 0:00:03]} 41. Qb5 {[%clk 0:00:05]}  Kf7 {[%clk 0:00:04]} 42. Qd7+ {[%clk 0:00:05]}  Kf6 {[%clk 0:00:04]} 43. Qxa7 {[%clk 0:00:06]}  Ke6 {[%clk 0:00:04]} 44. Qxb6+ {[%clk 0:00:07]}  Kd5 {[%clk 0:00:05]} 45. Qxh6 {[%clk 0:00:07]}  Ke4 {[%clk 0:00:06]} 46. Qg5 {[%clk 0:00:07]}  Kf3 {[%clk 0:00:06]} 47. f5 {[%clk 0:00:08]}  Ke2 {[%clk 0:00:07]} 48. f6 {[%clk 0:00:09]}  Kd1 {[%clk 0:00:08]} 49. f7 {[%clk 0:00:10]}  Kc2 {[%clk 0:00:09]} 50. f8=Q {[%clk 0:00:11]}  Kb2 {[%clk 0:00:09]} 51. Qff6 {[%clk 0:00:11]}  Kc2 {[%clk 0:00:10]} 52. Qe3 {[%clk 0:00:11]}  Kb3 {[%clk 0:00:11]} 53. Qfd4 {[%clk 0:00:11]}  Ka4 {[%clk 0:00:12]} 54. Qexd3 {[%clk 0:00:11]}  Kb3 {[%clk 0:00:13]} 55. Q3xc4+ {[%clk 0:00:12]}  Kb2 {[%clk 0:00:14]} 56. Qf2+ {[%clk 0:00:12]}  Ka1 {[%clk 0:00:13]} 57. Qcf1# {[%clk 0:00:13]} 1-0


[Site "https://www.chess.com"]

[Event "Titled Tuesday Blitz July 25 Early 2023"]
[White "luksona14"]
[Black "Schut, Han"]
[BlackFideId "1005561"]
[WhiteElo "2487"]
[BlackElo "2297"]
[Result "1-0"]
[Round "3"]
[TimeControl "180+2"]
[Date "2023.07.25"]
[WhiteClock "0:02:02"]
[BlackClock "0:00:04"]
[Board "208"]

1. Nf3 {[%clk 0:03:00]}  Nf6 {[%clk 0:02:59]} 2. c4 {[%clk 0:03:01]}  g6 {[%clk 0:02:59]} 3. Nc3 {[%clk 0:03:01]}  d5 {[%clk 0:03:00]} 4. cxd5 {[%clk 0:03:01]}  Nxd5 {[%clk 0:03:00]} 5. Qb3 {[%clk 0:03:01]}  Nb6 {[%clk 0:02:59]} 6. d4 {[%clk 0:03:01]}  Bg7 {[%clk 0:02:57]} 7. Bf4 {[%clk 0:03:02]}  O-O {[%clk 0:02:41]} 8. e3 {[%clk 0:03:01]}  Be6 {[%clk 0:02:30]} 9. Qa3 {[%clk 0:02:57]}  Nd5 {[%clk 0:02:16]} 10. Bg3 {[%clk 0:02:54]}  Nd7 {[%clk 0:01:58]} 11. Be2 {[%clk 0:02:45]}  c5 {[%clk 0:01:56]} 12. e4 {[%clk 0:02:34]}  Nxc3 {[%clk 0:01:24]} 13. bxc3 {[%clk 0:02:33]}  cxd4 {[%clk 0:01:21]} 14. cxd4 {[%clk 0:02:33]}  Nb6 {[%clk 0:01:19]} 15. Rd1 {[%clk 0:02:33]}  Bc4 {[%clk 0:01:03]} 16. Bxc4 {[%clk 0:02:28]}  Nxc4 {[%clk 0:01:04]} 17. Qb3 {[%clk 0:02:28]}  Qa5+ {[%clk 0:00:58]} 18. Ke2 {[%clk 0:02:25]}  Qa6 {[%clk 0:00:51]} 19. Rd3 {[%clk 0:02:24]}  Rfd8 {[%clk 0:00:27]} 20. Rhd1 {[%clk 0:02:23]}  Rac8 {[%clk 0:00:21]} 21. Kf1 {[%clk 0:02:20]}  b5 {[%clk 0:00:19]} 22. Kg1 {[%clk 0:02:20]}  Qb6 {[%clk 0:00:14]} 23. e5 {[%clk 0:02:17]}  e6 {[%clk 0:00:14]} 24. h4 {[%clk 0:02:13]}  a5 {[%clk 0:00:14]} 25. d5 {[%clk 0:02:11]}  a4 {[%clk 0:00:14]} 26. Qb4 {[%clk 0:02:10]}  exd5 {[%clk 0:00:14]} 27. Rxd5 {[%clk 0:02:10]}  Rxd5 {[%clk 0:00:14]} 28. Rxd5 {[%clk 0:02:09]}  Qc6 {[%clk 0:00:08]} 29. Qxb5 {[%clk 0:02:06]}  Na3 {[%clk 0:00:06]} 30. Qxc6 {[%clk 0:02:06]}  Rxc6 {[%clk 0:00:06]} 31. Rd8+ {[%clk 0:02:06]}  Bf8 {[%clk 0:00:07]} 32. Bf4 {[%clk 0:02:06]}  Kg7 {[%clk 0:00:07]} 33. Bg5 {[%clk 0:02:04]}  Bb4 {[%clk 0:00:05]} 34. Bf6+ {[%clk 0:02:05]}  Kh6 {[%clk 0:00:06]} 35. g4 {[%clk 0:02:02]}  Rc1+ {[%clk 0:00:04]} 36. Kg2 {[%clk 0:02:02]}  g5 {[%clk 0:00:03]} 37. hxg5+ {[%clk 0:02:02]}  Kg6 {[%clk 0:00:04]} 38. Rg8# {[%clk 0:02:02]} 1-0


[Site "https://www.chess.com"]